[Event "WJCC U20 Juniors 2017"]
[Site "?"]
[Date "2024.04.13"]
[Round "7.11"]
[White "Yu, Jennifer"]
[Black "Osmak, Iulija"]
[Result "1/2-1/2"]
[WhiteElo "2321"]
[BlackElo "2345"]
[PlyCount "86"]
[EventType "swiss"]
[EventCountry "ITA"]
[SourceTitle "Tarvisio"]
[TimeControl "40/5400+30:1800+30"]
[WhiteClock "0:31:00"]
[BlackClock "0:33:00"]

1. d4 {[%emt 0:00:30]} f5 {[%emt 0:01:00]} 2. Nf3 {[%emt 0:00:30]} e6 {[%emt 0:00:30]} 3. g3 {[%emt 0:00:30]} Nf6 {[%emt 0:00:00]} 4. Bg2 {[%emt 0:01:30]} d5 {[%emt 0:00:00]} 5. b3 {[%emt 0:02:30]} Bd6 {[%emt 0:01:30]} 6. Bb2 {[%emt 0:02:30]} c6 {[%emt 0:00:30]} 7. c4 {[%emt 0:02:30]} O-O {[%emt 0:00:30]} 8. Nbd2 {[%emt 0:00:30]} Nbd7 {[%emt 0:00:30]} 9. h3 {[%emt 0:02:30]} a5 {[%emt 0:03:30]} 10. a3 {[%emt 0:09:30]} Ne4 {[%emt 0:02:30] [%clk 1:25]} 11. c5 {[%emt 0:10:30]} Bc7 {[%emt 0:00:30]} 12. e3 {[%emt 0:00:30]} b6 {[%emt 0:10:30]} 13. cxb6 {[%emt 0:04:30]} Bd6 {[%emt 0:05:30]} 14. Qc2 {[%emt 0:07:30]} Qxb6 {[%emt 0:02:30]} 15. O-O {[%emt 0:00:30]} Ba6 {[%emt 0:01:30]} 16. Rfc1 {[%emt 0:00:30]} Rac8 {[%emt 0:01:30]} 17. Bf1 {[%emt 0:05:30]} c5 {[%emt 0:03:30]} 18. dxc5 {[%emt 0:10:30]} Ndxc5 {[%emt 0:02:30]} 19. Qd1 {[%emt 0:08:30]} Bxf1 {[%emt 0:04:30]} 20. Qxf1 {[%emt 0:00:30]} Nxb3 {[%emt 0:03:30]} 21. Nxb3 {[%emt 0:00:30]} Qxb3 {[%emt 0:00:00]} 22. Bxg7 {[%emt 0:01:30]} Rxc1 {[%emt 0:20:00]} 23. Qxc1 {[%emt 0:00:30]} Kxg7 {[%emt 0:03:30]} 24. Nd4 {[%emt 0:03:30]} Qc3 {[%emt 0:01:30]} 25. Nxe6+ {[%emt 0:00:30]} Kf6 {[%emt 0:01:30]} 26. Nxf8 {[%emt 0:00:30]} Bxf8 {[%emt 0:00:30]} 27. Qxc3+ {[%emt 0:09:37]} Nxc3 {[%emt 0:00:30]} 28. g4 {[%emt 0:02:19]} f4 {[%emt 0:02:30]} 29. Kg2 {[%emt 0:00:57]} fxe3 {[%emt 0:02:30]} 30. fxe3 {[%emt 0:00:02]} Bc5 {[%emt 0:01:30]} 31. Kf3 {[%emt 0:01:11]} Ne4 {[%emt 0:01:30]} 32. Kf4 {[%emt 0:07:17]} Bd6+ {[%emt 0:01:30]} 33. Kf3 {[%emt 0:00:10]} Ke6 {[%emt 0:03:30]} 34. a4 {[%emt 0:02:23]} h6 {[%emt 0:05:13]} 35. Rc1 {[%emt 0:01:51]} Nc5 {[%emt 0:02:40]} 36. h4 {[%emt 0:00:52]} Nd3 {[%emt 0:03:47]} 37. Rg1 {[%emt 0:00:05]} Be7 {[%emt 0:00:39]} 38. Ke2 {[%emt 0:01:04]} Ne5 {[%emt 0:00:58]} 39. g5 {[%emt 0:00:18]} hxg5 {[%emt 0:00:18]} 40. hxg5 {[%emt 0:00:00]} Kf5 {[%emt 0:00:55]} 41. Rd1 {[%emt 0:02:24]} Ke6 {[%emt 0:00:30]} 42. Rg1 {[%emt 0:00:30]} Kf5 {[%emt 0:06:30]} 43. Rd1 {[%emt 0:00:30]} Ke6 1/2-1/2

[Event "WJCC U20 Juniors 2017"]
[Site "?"]
[Date "2024.04.13"]
[Round "7.12"]
[White "Tsolakidou, Stavroula"]
[Black "Nomin-Erdene, Davaademberel"]
[Result "1-0"]
[WhiteElo "2340"]
[BlackElo "2358"]
[PlyCount "89"]
[EventType "swiss"]
[EventCountry "ITA"]
[SourceTitle "Tarvisio"]
[TimeControl "40/5400+30:1800+30"]
[WhiteClock "0:30:00"]
[BlackClock "0:27:00"]

1. e4 {[%emt 0:00:30]} e5 {[%emt 0:01:00]} 2. Nf3 {[%emt 0:00:00]} Nc6 {[%emt 0:00:00]} 3. Bb5 {[%emt 0:00:00]} a6 {[%emt 0:00:00]} 4. Ba4 {[%emt 0:00:00]} Nf6 {[%emt 0:00:30]} 5. d3 {[%emt 0:01:00]} d6 {[%emt 0:00:30]} 6. c3 {[%emt 0:01:30]} g6 {[%emt 0:00:30]} 7. h3 {[%emt 0:01:30]} Bg7 {[%emt 0:00:30]} 8. Be3 {[%emt 0:00:30]} O-O {[%emt 0:03:30]} 9. Nbd2 {[%emt 0:00:30]} b5 {[%emt 0:05:30]} 10. Bc2 {[%emt 0:00:30]} Re8 {[%emt 0:04:30]} 11. O-O {[%emt 0:01:30]} Bb7 {[%emt 0:04:30]} 12. a4 {[%emt 0:06:30]} b4 {[%emt 0:06:30]} 13. a5 {[%emt 0:01:30]} bxc3 {[%emt 0:03:30]} 14. bxc3 {[%emt 0:00:00]} Na7 {[%emt 0:00:30]} 15. Bb3 {[%emt 0:08:00]} h6 {[%emt 0:06:30]} 16. Bxf7+ {[%emt 0:28:30]} Kxf7 {[%emt 0:00:30]} 17. Qb3+ {[%emt 0:00:30]} Re6 {[%emt 0:19:30]} 18. Qxb7 {[%emt 0:00:30]} Nb5 {[%emt 0:00:30]} 19. c4 {[%emt 0:13:30]} Rb8 {[%emt 0:01:30]} 20. Qxa6 {[%emt 0:00:30]} Nc3 {[%emt 0:02:30]} 21. Ra3 {[%emt 0:01:30]} Ne2+ {[%emt 0:04:30]} 22. Kh1 {[%emt 0:01:30]} d5 {[%emt 0:09:30]} 23. Nxe5+ {[%emt 0:00:30]} Rxe5 {[%emt 0:00:30]} 24. cxd5 {[%emt 0:00:30]} Bf8 {[%emt 0:07:19]} 25. Raa1 {[%emt 0:05:30]} Re8 {[%emt 0:02:08]} 26. Rfe1 {[%emt 0:07:32]} Nc3 {[%emt 0:00:18]} 27. Qc4 {[%emt 0:00:54]} Nb5 {[%emt 0:01:14]} 28. a6 {[%emt 0:00:50]} Nd6 {[%emt 0:02:56]} 29. Qc2 {[%emt 0:00:26]} Bg7 {[%emt 0:01:43]} 30. a7 {[%emt 0:00:40]} Ra8 {[%emt 0:00:04]} 31. Rab1 {[%emt 0:02:24]} Nd7 {[%emt 0:01:40]} 32. Rec1 {[%emt 0:00:56]} Rc8 {[%emt 0:01:24]} 33. Nf3 {[%emt 0:01:45]} g5 {[%emt 0:05:55]} 34. Qd1 {[%emt 0:06:21]} Qe7 {[%emt 0:04:01]} 35. Nd4 {[%emt 0:02:21]} Bxd4 {[%emt 0:00:42]} 36. Qh5+ {[%emt 0:00:14]} Kf8 {[%emt 0:01:25]} 37. Bxd4 {[%emt 0:00:15]} Nf7 {[%emt 0:00:04]} 38. Qg6 {[%emt 0:02:15]} Nde5 {[%emt 0:00:07]} 39. Qf5 {[%emt 0:01:07]} Kg8 {[%emt 0:01:09]} 40. Rc6 {[%emt 0:00:00]} Qd7 {[%emt 0:01:21]} 41. Rg6+ {[%emt 0:06:00]} Kf8 {[%emt 0:03:30]} 42. Bc5+ {[%emt 0:01:30]} Re7 {[%emt 0:00:30]} 43. Bxe7+ {[%emt 0:00:30]} Kxe7 {[%emt 0:00:30]} 44. Qf6+ {[%emt 0:00:00]} Kf8 {[%emt 0:00:30]} 45. Qg7+ 1-0

[Event "WJCC U20 Juniors 2017"]
[Site "?"]
[Date "2024.04.13"]
[Round "7.13"]
[White "Aakanksha Hagawane"]
[Black "Vaishali R"]
[Result "1/2-1/2"]
[WhiteElo "2312"]
[BlackElo "2325"]
[PlyCount "81"]
[EventType "swiss"]
[EventCountry "ITA"]
[SourceTitle "Tarvisio"]
[TimeControl "40/5400+30:1800+30"]
[WhiteClock "0:31:00"]
[BlackClock "0:32:00"]

1. e4 {[%emt 0:00:30]} e5 {[%emt 0:01:00]} 2. Nf3 {[%emt 0:00:00]} Nc6 {[%emt 0:00:00]} 3. Bb5 {[%emt 0:00:00]} a6 {[%emt 0:00:00]} 4. Ba4 {[%emt 0:00:00]} Nf6 {[%emt 0:00:30]} 5. O-O {[%emt 0:00:00]} b5 {[%emt 0:00:00]} 6. Bb3 {[%emt 0:00:30]} Bb7 {[%emt 0:00:00]} 7. d3 {[%emt 0:00:30]} Be7 {[%emt 0:01:30]} 8. Nc3 {[%emt 0:01:30]} O-O {[%emt 0:01:30]} 9. a3 {[%emt 0:06:30]} Nd4 {[%emt 0:02:30]} 10. Nxd4 {[%emt 0:05:30]} exd4 {[%emt 0:00:00]} 11. Ne2 {[%emt 0:00:00]} c5 {[%emt 0:03:00]} 12. e5 {[%emt 0:03:00] [%clk 1:18]} Ne8 {[%emt 0:18:30]} 13. c3 {[%emt 0:07:30]} dxc3 {[%emt 0:04:30]} 14. bxc3 {[%emt 0:04:30]} d6 {[%emt 0:02:30]} 15. f4 {[%emt 0:05:30]} Qb6 {[%emt 0:23:30]} 16. d4 {[%emt 0:05:30]} c4 {[%emt 0:09:30]} 17. Bc2 {[%emt 0:02:30]} f6 {[%emt 0:30:30]} 18. exd6 {[%emt 0:23:30]} Nxd6 {[%emt 0:00:00]} 19. f5 {[%emt 0:04:30]} Ne4 {[%emt 0:00:00]} 20. Rf4 {[%emt 0:05:30]} Ng5 {[%emt 0:00:00]} 21. h4 {[%emt 0:01:30]} Nf7 {[%emt 0:00:00]} 22. Rg4 {[%emt 0:00:30]} Bd6 {[%emt 0:00:00]} 23. Nf4 {[%emt 0:06:57]} Bxf4 {[%emt 0:00:00]} 24. Bxf4 {[%emt 0:00:10]} Rae8 {[%emt 0:00:00]} 25. Rg3 {[%emt 0:03:04]} Re7 {[%emt 0:00:00]} 26. Qg4 {[%emt 0:05:47]} Ne5 {[%emt 0:00:58]} 27. Bxe5 {[%emt 0:03:01]} fxe5 {[%emt 0:00:02]} 28. Re1 {[%emt 0:00:28]} e4 {[%emt 0:03:07]} 29. Bxe4 {[%emt 0:03:06]} Qf6 {[%emt 0:00:34]} 30. Rge3 {[%emt 0:00:39]} Bxe4 {[%emt 0:00:45]} 31. Rxe4 {[%emt 0:00:01]} Rxe4 {[%emt 0:00:16]} 32. Rxe4 {[%emt 0:02:55]} Qxf5 {[%emt 0:00:03]} 33. Qe2 {[%emt 0:00:39]} h6 {[%emt 0:00:37]} 34. Re8 {[%emt 0:00:35]} Qd5 {[%emt 0:01:34]} 35. Qe7 {[%emt 0:00:26]} Rxe8 {[%emt 0:00:16]} 36. Qxe8+ {[%emt 0:00:01]} Kh7 {[%emt 0:00:00]} 37. h5 {[%emt 0:00:44]} Qg5 {[%emt 0:00:44]} 38. Qe4+ {[%emt 0:00:53]} Kg8 {[%emt 0:00:13]} 39. Qe8+ {[%emt 0:00:22]} Kh7 {[%emt 0:00:07]} 40. Qe4+ {[%emt 0:00:00]} Kg8 {[%emt 0:00:14]} 41. Qe8+ 1/2-1/2

[Event "WJCC U20 Juniors 2017"]
[Site "?"]
[Date "2024.04.13"]
[Round "7.14"]
[White "Mammadzada, Gunay"]
[Black "Paramzina, Anastasya"]
[Result "0-1"]
[WhiteElo "2393"]
[BlackElo "2123"]
[PlyCount "98"]
[EventType "swiss"]
[EventCountry "ITA"]
[SourceTitle "Tarvisio"]
[TimeControl "40/5400+30:1800+30"]
[WhiteClock "0:18:50"]
[BlackClock "0:16:06"]

1. e4 {[%emt 0:00:30]} c5 {[%emt 0:01:00]} 2. Nf3 {[%emt 0:00:00]} d6 {[%emt 0:00:00]} 3. d4 {[%emt 0:00:00]} cxd4 {[%emt 0:00:00]} 4. Nxd4 {[%emt 0:00:00]} Nf6 {[%emt 0:00:00]} 5. Nc3 {[%emt 0:00:00]} a6 {[%emt 0:00:00]} 6. Bg5 {[%emt 0:00:30]} Nbd7 {[%emt 0:00:30]} 7. Bc4 {[%emt 0:00:30]} Qb6 {[%emt 0:04:30]} 8. Bb3 {[%emt 0:00:30]} e6 {[%emt 0:01:30]} 9. Bxf6 {[%emt 0:00:30]} Nxf6 {[%emt 0:03:30]} 10. Qd2 {[%emt 0:00:30]} Be7 {[%emt 0:04:30]} 11. f4 {[%emt 0:02:30] [%clk 1:30]} Qc5 {[%emt 0:22:30]} 12. O-O-O {[%emt 0:05:30]} b5 {[%emt 0:01:30]} 13. Rhe1 {[%emt 0:28:30]} O-O {[%emt 0:14:30]} 14. g4 {[%emt 0:09:30]} Nxg4 {[%emt 0:04:30]} 15. Qg2 {[%emt 0:02:30]} e5 {[%emt 0:04:30]} 16. Nd5 {[%emt 0:04:30]} Bh4 {[%emt 0:11:30]} 17. h3 {[%emt 0:18:30]} Bxe1 {[%emt 0:15:23]} 18. hxg4 {[%emt 0:00:30]} exd4 {[%emt 0:03:49]} 19. g5 {[%emt 0:10:09]} Rd8 {[%emt 0:00:58]} 20. Rxe1 {[%emt 0:03:31]} Be6 {[%emt 0:02:39]} 21. Kb1 {[%emt 0:05:32]} Rac8 {[%emt 0:01:00]} 22. f5 {[%emt 0:00:37]} Bxd5 {[%emt 0:00:30]} 23. Bxd5 {[%emt 0:00:33]} d3 {[%emt 0:00:30]} 24. cxd3 {[%emt 0:00:33]} Qd4 {[%emt 0:00:30]} 25. Qf3 {[%emt 0:00:19]} Rc5 {[%emt 0:00:45]} 26. g6 {[%emt 0:01:12]} Rdc8 {[%emt 0:00:39]} 27. Bxf7+ {[%emt 0:01:27]} Kf8 {[%emt 0:00:39]} 28. Bb3 {[%emt 0:01:01]} h6 {[%emt 0:00:05]} 29. Rf1 {[%emt 0:01:30]} Qf6 {[%emt 0:00:24]} 30. Qe3 {[%emt 0:01:32]} Qg5 {[%emt 0:00:06]} 31. Qxg5 {[%emt 0:00:07]} hxg5 {[%emt 0:00:05]} 32. d4 {[%emt 0:00:10]} R5c7 {[%emt 0:00:12]} 33. Be6 {[%emt 0:01:07]} Re8 {[%emt 0:00:08]} 34. Rg1 {[%emt 0:00:28]} Ke7 {[%emt 0:00:37]} 35. Rxg5 {[%emt 0:00:46]} Rh8 {[%emt 0:00:06]} 36. Rg1 {[%emt 0:00:13]} Rh2 {[%emt 0:01:22]} 37. Bb3 {[%emt 0:01:54]} Re2 {[%emt 0:00:52]} 38. Rf1 {[%emt 0:00:45]} Kf6 {[%emt 0:00:21]} 39. Bd5 {[%emt 0:00:21]} Rd2 {[%emt 0:01:54]} 40. a3 {[%emt 0:00:00]} Rxd4 {[%emt 0:00:26]} 41. Rf2 {[%emt 0:04:43]} Rd1+ {[%emt 0:07:30]} 42. Ka2 {[%emt 0:00:00]} a5 {[%emt 0:01:30]} 43. Rf3 {[%emt 0:06:00]} a4 {[%emt 0:04:48]} 44. Rc3 {[%emt 0:00:30]} Rxc3 {[%emt 0:02:26]} 45. bxc3 {[%emt 0:00:30]} Rxd5 {[%emt 0:00:29]} 46. exd5 {[%emt 0:00:00]} Kxf5 {[%emt 0:00:13]} 47. Kb2 {[%emt 0:03:54]} Kxg6 {[%emt 0:02:51]} 48. c4 {[%emt 0:01:12]} bxc4 {[%emt 0:00:07]} 49. Kc3 {[%emt 0:00:04]} Kf5 0-1

[Event "WJCC U20 Juniors 2017"]
[Site "?"]
[Date "2024.04.13"]
[Round "7.16"]
[White "Assaubayeva, Bibisara"]
[Black "Terbe, Julianna"]
[Result "1-0"]
[WhiteElo "2395"]
[BlackElo "2263"]
[PlyCount "81"]
[EventType "swiss"]
[EventCountry "ITA"]
[SourceTitle "Tarvisio"]
[TimeControl "40/5400+30:1800+30"]
[WhiteClock "0:38:00"]
[BlackClock "0:33:00"]

1. d4 {[%emt 0:00:30]} d5 {[%emt 0:01:00]} 2. c4 {[%emt 0:00:00]} c6 {[%emt 0:00:00]} 3. Nf3 {[%emt 0:00:00]} Nf6 {[%emt 0:00:00]} 4. Nc3 {[%emt 0:00:30]} dxc4 {[%emt 0:00:00]} 5. a4 {[%emt 0:00:00]} Bf5 {[%emt 0:00:00]} 6. Ne5 {[%emt 0:00:00]} Nbd7 {[%emt 0:00:30]} 7. Nxc4 {[%emt 0:00:30]} Qc7 {[%emt 0:00:30]} 8. g3 {[%emt 0:00:30]} e5 {[%emt 0:00:00]} 9. dxe5 {[%emt 0:00:30]} Nxe5 {[%emt 0:00:00]} 10. Bf4 {[%emt 0:00:30]} Nfd7 {[%emt 0:00:30]} 11. Bg2 {[%emt 0:00:30]} f6 {[%emt 0:00:00]} 12. O-O {[%emt 0:00:00]} Be6 {[%emt 0:00:00]} 13. Nxe5 {[%emt 0:03:00]} Nxe5 {[%emt 0:00:30]} 14. a5 {[%emt 0:02:30]} a6 {[%emt 0:00:30]} 15. Qa4 {[%emt 0:00:30]} Bc5 {[%emt 0:00:30]} 16. Ne4 {[%emt 0:00:30]} Be7 {[%emt 0:00:30]} 17. Rac1 {[%emt 0:04:30]} O-O {[%emt 0:00:30]} 18. Be3 {[%emt 0:04:30]} Nd7 {[%emt 0:02:30]} 19. Rfd1 {[%emt 0:04:30]} Rad8 {[%emt 0:00:30]} 20. Rd2 {[%emt 0:05:30]} Rfe8 {[%emt 0:03:30] [%clk 1:29]} 21. h4 {[%emt 0:05:30]} h6 {[%emt 0:13:30]} 22. Rcd1 {[%emt 0:05:30]} Qc8 {[%emt 0:05:30]} 23. b4 {[%emt 0:18:30]} Ne5 {[%emt 0:05:30]} 24. Rxd8 {[%emt 0:05:30]} Rxd8 {[%emt 0:01:30]} 25. Bc5 {[%emt 0:01:30]} Bxc5 {[%emt 0:10:30]} 26. Nxc5 {[%emt 0:01:30]} Rxd1+ {[%emt 0:12:30]} 27. Qxd1 {[%emt 0:00:30]} Bc4 {[%emt 0:00:30]} 28. e4 {[%emt 0:05:30]} Qc7 {[%emt 0:03:30]} 29. f4 {[%emt 0:05:30]} Nf7 {[%emt 0:03:30]} 30. Qd4 {[%emt 0:01:30]} Ba2 {[%emt 0:03:30]} 31. Bh3 {[%emt 0:03:30]} Nd6 {[%emt 0:13:30]} 32. e5 {[%emt 0:03:03]} fxe5 {[%emt 0:00:30]} 33. Qxe5 {[%emt 0:01:04]} Qd8 {[%emt 0:03:52]} 34. Be6+ {[%emt 0:07:53]} Bxe6 {[%emt 0:01:37]} 35. Qxe6+ {[%emt 0:00:04]} Nf7 {[%emt 0:11:10]} 36. Nd7 {[%emt 0:00:21]} h5 {[%emt 0:00:28]} 37. Kh2 {[%emt 0:04:41]} c5 {[%emt 0:02:36]} 38. bxc5 {[%emt 0:00:23]} Qxa5 {[%emt 0:00:47]} 39. Qe8+ {[%emt 0:00:07]} Kh7 {[%emt 0:00:06]} 40. Nf8+ {[%emt 0:00:00]} Kg8 {[%emt 0:01:24]} 41. Ne6+ 1-0

[Event "WJCC U20 Juniors 2017"]
[Site "?"]
[Date "2024.04.13"]
[Round "7.17"]
[White "Heinemann, Josefine"]
[Black "Badelka, Olga"]
[Result "1/2-1/2"]
[WhiteElo "2293"]
[BlackElo "2374"]
[PlyCount "88"]
[EventType "swiss"]
[EventCountry "ITA"]
[SourceTitle "Tarvisio"]
[TimeControl "40/5400+30:1800+30"]
[WhiteClock "0:45:00"]
[BlackClock "0:33:00"]

1. e4 {[%emt 0:00:30]} c5 {[%emt 0:01:00]} 2. Nf3 {[%emt 0:00:00]} Nc6 {[%emt 0:00:00]} 3. d4 {[%emt 0:00:00]} cxd4 {[%emt 0:00:00]} 4. Nxd4 {[%emt 0:00:00]} e5 {[%emt 0:00:00]} 5. Nb5 {[%emt 0:00:00]} d6 {[%emt 0:00:00]} 6. N1c3 {[%emt 0:00:30]} a6 {[%emt 0:00:00]} 7. Na3 {[%emt 0:00:00]} Be7 {[%emt 0:00:00]} 8. Be3 {[%emt 0:01:00]} Nf6 {[%emt 0:00:30]} 9. Nc4 {[%emt 0:00:30]} b5 {[%emt 0:00:00]} 10. Nb6 {[%emt 0:00:30]} Rb8 {[%emt 0:00:00]} 11. Nxc8 {[%emt 0:00:00]} Qxc8 {[%emt 0:00:30]} 12. Be2 {[%emt 0:00:00]} O-O {[%emt 0:00:00]} 13. O-O {[%emt 0:00:30]} Rd8 {[%emt 0:00:00]} 14. a4 {[%emt 0:07:30]} Nb4 {[%emt 0:07:30]} 15. axb5 {[%emt 0:02:30]} axb5 {[%emt 0:03:30]} 16. Bf3 {[%emt 0:10:30] [%clk 1:14]} h6 {[%emt 0:07:30]} 17. Qe2 {[%emt 0:02:30]} Qc4 {[%emt 0:10:30]} 18. Ra7 {[%emt 0:07:30]} Nc6 {[%emt 0:12:30]} 19. Rc7 {[%emt 0:04:30]} Rdc8 {[%emt 0:00:30]} 20. Rxc8+ {[%emt 0:00:30]} Rxc8 {[%emt 0:00:30]} 21. Nxb5 {[%emt 0:06:30]} Qxe2 {[%emt 0:02:30]} 22. Bxe2 {[%emt 0:00:00]} Nxe4 {[%emt 0:00:30]} 23. Rd1 {[%emt 0:03:00]} Rb8 {[%emt 0:20:30]} 24. Bc1 {[%emt 0:08:30]} Nf6 {[%emt 0:07:30]} 25. c4 {[%emt 0:02:30]} Rd8 {[%emt 0:01:30]} 26. Kf1 {[%emt 0:02:30]} Kf8 {[%emt 0:02:30]} 27. Be3 {[%emt 0:03:30]} d5 {[%emt 0:03:30]} 28. cxd5 {[%emt 0:02:30]} Nxd5 {[%emt 0:00:30]} 29. Bc1 {[%emt 0:01:30]} f5 {[%emt 0:01:55]} 30. Nc3 {[%emt 0:00:30]} Ndb4 {[%emt 0:03:21]} 31. Rxd8+ {[%emt 0:00:30]} Bxd8 {[%emt 0:00:04]} 32. g3 {[%emt 0:02:30]} Bg5 {[%emt 0:05:02]} 33. f4 {[%emt 0:03:30]} exf4 {[%emt 0:00:15]} 34. h4 {[%emt 0:02:30]} Bf6 {[%emt 0:04:07]} 35. Bxf4 {[%emt 0:00:00]} Be5 {[%emt 0:00:28]} 36. Bxe5 {[%emt 0:02:00]} Nxe5 {[%emt 0:00:03]} 37. b3 {[%emt 0:00:30]} Ke7 {[%emt 0:00:20]} 38. Kf2 {[%emt 0:01:30]} Kf6 {[%emt 0:03:45]} 39. Ke3 {[%emt 0:05:30]} Nec6 {[%emt 0:01:02]} 40. Bc4 {[%emt 0:00:00]} Ke5 {[%emt 0:01:38]} 41. Ne2 {[%emt 0:04:00]} g5 {[%emt 0:02:30]} 42. hxg5 {[%emt 0:00:00]} hxg5 {[%emt 0:00:00]} 43. Ng1 {[%emt 0:04:00]} f4+ {[%emt 0:01:00]} 44. gxf4+ {[%emt 0:00:30]} gxf4+ 1/2-1/2

[Event "WJCC U20 Juniors 2017"]
[Site "?"]
[Date "2024.04.13"]
[Round "7.18"]
[White "Nie, Xin"]
[Black "Zhu, Jiner"]
[Result "0-1"]
[WhiteElo "2106"]
[BlackElo "2363"]
[PlyCount "84"]
[EventType "swiss"]
[EventCountry "ITA"]
[SourceTitle "Tarvisio"]
[TimeControl "40/5400+30:1800+30"]
[WhiteClock "0:35:00"]
[BlackClock "0:58:00"]

1. d4 {[%emt 0:00:30]} Nf6 {[%emt 0:01:00]} 2. c4 {[%emt 0:00:00]} g6 {[%emt 0:00:00]} 3. Nc3 {[%emt 0:00:00]} Bg7 {[%emt 0:00:00]} 4. e4 {[%emt 0:00:30]} d6 {[%emt 0:00:00]} 5. f3 {[%emt 0:00:00]} O-O {[%emt 0:00:00]} 6. Nge2 {[%emt 0:00:00]} c5 {[%emt 0:00:30]} 7. Be3 {[%emt 0:00:30]} cxd4 {[%emt 0:00:00]} 8. Nxd4 {[%emt 0:00:30]} Nc6 {[%emt 0:01:00]} 9. Qd2 {[%emt 0:01:30]} Nxd4 {[%emt 0:01:30]} 10. Bxd4 {[%emt 0:00:00]} Be6 {[%emt 0:00:30]} 11. Be2 {[%emt 0:02:00]} Qa5 {[%emt 0:01:30]} 12. O-O {[%emt 0:01:30]} Rfc8 {[%emt 0:00:30]} 13. b3 {[%emt 0:03:30]} b5 {[%emt 0:12:30]} 14. cxb5 {[%emt 0:08:30]} Nxe4 {[%emt 0:00:00]} 15. fxe4 {[%emt 0:00:30]} Bxd4+ {[%emt 0:00:00]} 16. Qxd4 {[%emt 0:00:00]} Rxc3 {[%emt 0:00:30] [%clk 1:19]} 17. Rfd1 {[%emt 0:15:00]} Rc2 {[%emt 0:13:30]} 18. Bd3 {[%emt 0:10:30]} Rd2 {[%emt 0:05:30]} 19. b4 {[%emt 0:12:30]} Rxd1+ {[%emt 0:06:30]} 20. Rxd1 {[%emt 0:00:30]} Qb6 {[%emt 0:03:30]} 21. Qf2 {[%emt 0:02:30]} Qc7 {[%emt 0:02:30]} 22. Qd2 {[%emt 0:05:30]} Rc8 {[%emt 0:00:30]} 23. a4 {[%emt 0:00:30]} Bb3 {[%emt 0:05:30]} 24. Ra1 {[%emt 0:00:30]} d5 {[%emt 0:01:30]} 25. exd5 {[%emt 0:03:30]} Qe5 {[%emt 0:00:00]} 26. Re1 {[%emt 0:14:54]} Qxd5 {[%emt 0:00:00]} 27. Rxe7 {[%emt 0:02:19]} Bc4 {[%emt 0:01:30]} 28. Qc3 {[%emt 0:00:10]} Qxd3 {[%emt 0:00:30]} 29. Qxd3 {[%emt 0:00:03]} Bxd3 {[%emt 0:00:30]} 30. Rxa7 {[%emt 0:00:02]} Rc4 {[%emt 0:01:30]} 31. b6 {[%emt 0:06:16]} Rxb4 {[%emt 0:00:30]} 32. a5 {[%emt 0:01:19]} Be4 {[%emt 0:01:30]} 33. Re7 {[%emt 0:01:08]} Rb1+ {[%emt 0:04:30]} 34. Kf2 {[%emt 0:00:01]} Rb2+ {[%emt 0:00:00]} 35. Kg3 {[%emt 0:00:43]} Bxg2 {[%emt 0:00:00]} 36. Kf4 {[%emt 0:04:05]} Rb3 {[%emt 0:08:30]} 37. Re2 {[%emt 0:01:42]} Bf3 {[%emt 0:04:30]} 38. Re8+ {[%emt 0:01:36]} Kg7 {[%emt 0:00:30]} 39. Rb8 {[%emt 0:00:05]} Kf6 {[%emt 0:00:30]} 40. a6 {[%emt 0:00:00]} g5+ {[%emt 0:00:30]} 41. Kg3 {[%emt 0:01:37]} Be2+ {[%emt 0:00:00]} 42. Kf2 {[%emt 0:00:00]} Bxa6 0-1